bitfinex/quotes_BTCUSD_20251202
["timestamp","ask_amount","ask_price","bid_price","bid_amount"]
[1764688219753,0.01109102,90163.0,90158.0,0.00011544]
[1764688219974,0.22183003,90160.0,90158.0,0.00011544]
[1764688220114,0.001,90159.0,90158.0,0.00911544]
[1764688220328,0.22183003,90160.0,90158.0,0.00011544]
[1764688220739,0.01109127,90161.0,90158.0,0.00011544]
[1764688220986,0.001,90162.0,90159.0,0.23292028]
[1764688221254,0.001,90162.0,90161.0,0.2018254]
[1764688221462,0.001,90162.0,90161.0,0.2406854]
[1764688221631,0.001,90162.0,90161.0,0.6620954]
[1764688222333,0.001,90162.0,90161.0,0.5636854]
[1764688222522,0.01108893,90180.0,90176.0,0.23287741]
[1764688222686,0.01108856,90183.0,90178.0,0.01108917]
[1764688222889,0.23287042,90179.0,90175.0,0.01108954]
[1764688223090,0.01108905,90179.0,90176.0,0.23287679]
[1764688223294,0.01108905,90179.0,90175.0,0.01108954]
[1764688223295,0.01108917,90178.0,90175.0,0.01108954]
[1764688223722,0.01108917,90178.0,90171.0,0.2217997]
[1764688223926,0.01108917,90178.0,90174.0,0.23288141]
[1764688224127,0.01108942,90176.0,90173.0,0.01108979]
[1764688224345,0.01108905,90179.0,90173.0,0.01108979]
[1764688224346,0.23287116,90179.0,90175.0,0.01108954]
[1764688224546,0.0131474,90178.0,90171.0,0.01109004]
[1764688224751,0.01844,90183.0,90181.0,0.01108881]
[1764688224953,0.23284353,90190.0,90185.0,0.01108831]
[1764688225170,0.01108831,90185.0,90181.0,0.01108881]
[1764688225289,0.01108831,90185.0,90175.0,0.01108954]
[1764688225493,0.48448102,90191.0,90175.0,0.01108954]
[1764688225494,0.001,90179.0,90178.0,0.54478358]
[1764688225930,0.001,90179.0,90178.0,0.64319358]
[1764688226127,0.001,90179.0,90178.0,0.54478358]
[1764688226975,0.01108807,90187.0,90176.0,0.01108942]
[1764688227196,0.01108917,90178.0,90170.0,0.01109016]
[1764688227421,0.22178776,90177.0,90171.0,0.01109004]
[1764688227630,0.22180657,90169.0,90165.0,0.01109077]
[1764688227930,0.22181374,90166.0,90158.0,0.00011544]
[1764688228157,0.01109077,90165.0,90160.0,0.01109139]
[1764688228361,0.01109077,90165.0,90158.0,0.00011544]
[1764688228362,0.22183032,90159.0,90158.0,0.00011544]
[1764688228566,0.01109077,90165.0,90161.0,0.23291462]
[1764688228772,0.23290737,90165.0,90161.0,0.01109127]
[1764688228903,0.22179235,90175.0,90158.0,0.00011544]
[1764688228904,0.001,90169.0,90158.0,0.01120707]
[1764688229107,0.23389724,90169.0,90164.0,0.0110909]
[1764688229310,0.23290182,90167.0,90164.0,0.0110909]
[1764688229531,0.22182864,90160.0,90150.0,0.01109262]
[1764688229734,0.22182864,90160.0,90143.0,0.04885]
[1764688229735,0.22182864,90160.0,90153.0,0.22184273]
[1764688229929,0.22182864,90160.0,90149.0,0.01109274]
[1764688230133,0.22182864,90160.0,90151.0,0.22184922]
[1764688230342,0.22182864,90160.0,90136.0,0.03045]
[1764688230343,0.09828,90159.0,90136.0,0.03045]
[1764688230553,0.09828,90159.0,90111.0,0.0333121]
[1764688230554,0.01109582,90124.0,90111.0,0.0333121]
[1764688230726,0.01109582,90124.0,90090.0,0.52334102]
[1764688230727,0.1989076,90159.0,90095.0,0.01109939]
[1764688230728,0.01109779,90108.0,90095.0,0.01109939]
[1764688230933,0.01109779,90108.0,90090.0,0.03886]
[1764688230934,0.22196047,90107.0,90099.0,0.0110989]
[1764688231129,0.01109791,90107.0,90103.0,0.0110984]
[1764688231330,0.00038029,90108.0,90106.0,0.22195901]
[1764688231645,0.00038029,90108.0,90090.0,0.04996001]
[1764688231848,0.22199489,90093.0,90070.0,0.0004]
[1764688232026,0.11668,90092.0,90074.0,0.01110198]
[1764688232221,0.22199489,90093.0,90077.0,0.01110161]
[1764688232448,0.11668,90092.0,90071.0,0.22204467]
[1764688232691,0.11668,90092.0,90075.0,0.01110185]
[1764688232898,0.11668,90092.0,90091.0,0.00123926]
[1764688233203,0.11668,90092.0,90091.0,0.00023926]
[1764688233403,0.09828,90092.0,90091.0,0.00023926]
[1764688233632,0.22199489,90093.0,90091.0,0.00723926]
[1764688233633,0.22299496,90093.0,90091.0,0.00723926]
[1764688233842,0.22199529,90092.0,90091.0,0.00023926]
[1764688234094,0.48448102,90110.0,90091.0,0.00023926]
[1764688234095,0.0184,90098.0,90093.0,0.01109964]
[1764688234293,0.0110984,90103.0,90099.0,0.0110989]
[1764688234506,0.0184,90106.0,90103.0,0.0110984]
[1764688234707,0.0184,90106.0,90101.0,0.22197134]
[1764688234708,0.01109816,90105.0,90101.0,0.01109865]
[1764688234916,0.01109816,90105.0,90092.0,0.22199371]
[1764688234917,0.00038029,90108.0,90104.0,0.01109828]
[1764688235122,0.00038029,90108.0,90097.0,0.01109914]
[1764688235123,0.01109816,90105.0,90097.0,0.01109914]
[1764688235325,0.01109816,90105.0,90100.0,0.01109877]
[1764688235533,0.23306231,90105.0,90099.0,0.22197804]
[1764688235741,0.01209804,90106.0,90103.0,0.014]
[1764688235942,0.00038029,90108.0,90105.0,0.23306142]
[1764688236152,0.00038029,90108.0,90107.0,0.22195833]
[1764688236372,0.00038029,90108.0,90107.0,0.25240833]
[1764688236572,0.00038029,90108.0,90107.0,0.34645833]
[1764688236780,0.00038029,90108.0,90107.0,0.68785833]
[1764688236996,0.09474,90151.0,90107.0,0.68785833]
[1764688236997,0.22185837,90148.0,90142.0,0.0110936]
[1764688237211,0.22185837,90148.0,90141.0,0.22187247]
[1764688237212,0.01851399,90148.0,90145.0,0.22186325]
[1764688237419,0.01851399,90148.0,90146.0,0.2218602]
[1764688237420,0.00011399,90148.0,90146.0,0.2218602]
[1764688237667,0.00011399,90148.0,90129.0,0.0110952]
[1764688237668,0.01109299,90147.0,90129.0,0.0110952]
[1764688237879,0.00011399,90148.0,90145.0,0.23295662]
[1764688238099,0.23295507,90147.0,90143.0,0.01109348]
[1764688238327,0.00011399,90148.0,90143.0,0.01109348]
[1764688238531,0.00011399,90148.0,90145.0,0.23295571]
[1764688238734,0.01120685,90148.0,90145.0,0.23295683]
[1764688238943,0.00011399,90148.0,90145.0,0.23295683]
[1764688239159,0.00011399,90148.0,90025.0,0.02896014]
[1764688239160,0.0110952,90129.0,90122.0,0.323]
[1764688239361,0.23299232,90132.0,90127.0,0.01109545]
[1764688239566,0.01109422,90137.0,90129.0,0.0110952]
[1764688239773,0.22189895,90132.0,90127.0,0.01109545]
[1764688240022,0.22189895,90132.0,90100.0,0.92843173]
[1764688240023,0.01109557,90126.0,90117.0,0.01109668]
[1764688240231,0.01109582,90124.0,90120.0,0.23302044]
[1764688240436,0.23301354,90124.0,90119.0,0.01109643]
[1764688240650,0.23301354,90124.0,90090.0,0.92848031]
[1764688240651,0.01109717,90113.0,90104.0,0.01109828]
[1764688240868,0.01109717,90113.0,90100.0,0.03045]
[1764688240869,0.01109606,90122.0,90114.0,0.01109705]
[1764688241075,0.01109594,90123.0,90118.0,0.23302633]
[1764688241255,0.01109594,90123.0,90111.0,0.01109742]
[1764688241256,0.01109643,90119.0,90112.0,0.23304219]
[1764688241407,0.01109643,90119.0,90113.0,0.01109717]
[1764688241610,0.22193256,90118.0,90113.0,0.01109717]
[1764688241836,0.22193256,90118.0,90106.0,0.01109804]
[1764688241837,0.01109717,90113.0,90102.0,0.01109853]
[1764688242041,0.01109754,90110.0,90107.0,0.23305505]
[1764688242239,0.01109754,90110.0,90106.0,0.23305765]
[1764688242444,0.01109717,90113.0,90108.0,0.23305235]
[1764688242689,0.23304179,90113.0,90109.0,0.22195191]
[1764688242904,0.23304179,90113.0,90109.0,0.23304958]
[1764688243058,0.23304417,90112.0,90108.0,0.23305235]
[1764688243265,0.002,90110.0,90108.0,0.23305235]
[1764688243473,0.002,90110.0,90108.0,0.22195488]
[1764688243650,0.23306313,90105.0,90090.0,0.01110001]
[1764688243852,0.002,90110.0,90106.0,0.22195947]
[1764688244059,0.002,90110.0,90107.0,0.01109791]
[1764688244261,0.002,90110.0,90108.0,0.2219548]
[1764688244448,0.01109643,90119.0,90110.0,0.23304746]
[1764688244649,0.002,90113.0,90109.0,0.01109767]
[1764688244900,0.0110973,90112.0,90108.0,0.23305246]
[1764688245128,0.0110973,90112.0,90096.0,0.01109927]
[1764688245129,0.01109754,90110.0,90096.0,0.01109927]
[1764688245347,0.002,90110.0,90107.0,0.01109791]
[1764688245542,0.0110968,90116.0,90104.0,0.01109828]
[1764688245746,0.00011395,90116.0,90108.0,0.2330527]
[1764688245964,0.01309717,90113.0,90108.0,0.01109779]
[1764688246130,0.00011395,90116.0,90111.0,0.01109742]
[1764688246346,0.22194366,90113.0,90110.0,0.01109754]
[1764688246524,0.01109705,90114.0,90109.0,0.01109767]
[1764688246525,0.00011395,90116.0,90114.0,0.22193985]
[1764688246731,0.00011395,90116.0,90113.0,0.01109717]
[1764688246931,0.22195248,90110.0,90103.0,0.0110984]
[1764688247132,0.00011395,90116.0,90114.0,0.22194024]
[1764688247455,0.00011395,90116.0,90115.0,0.02219386]
[1764688248054,0.00011395,90116.0,90114.0,0.22194024]
[1764688248604,0.01109693,90115.0,90104.0,0.02949828]
[1764688248737,0.0110973,90112.0,90107.0,0.01109791]
[1764688249082,0.0110973,90112.0,90098.0,0.22197849]
[1764688249083,0.0110984,90103.0,90099.0,0.0221978]
[1764688249259,0.01109779,90108.0,90070.0,0.0004]
[1764688249260,0.23305921,90106.0,90101.0,0.01109865]
[1764688249468,0.23306467,90104.0,90101.0,0.01109865]
[1764688249663,0.01109791,90107.0,90101.0,0.01109865]
[1764688249664,0.01109791,90107.0,90101.0,0.03329596]
[1764688249865,0.01109791,90107.0,90100.0,0.01109877]
[1764688249866,0.01109828,90104.0,90093.0,0.01109964]
[1764688250065,0.01109828,90104.0,90092.0,0.323]
[1764688250066,0.01109865,90101.0,90092.0,0.323]
[1764688250246,0.23307529,90100.0,90096.0,0.23308232]
[1764688250450,0.01109902,90098.0,90094.0,0.01109951]
[1764688250692,0.01109902,90098.0,90091.0,0.00023926]
[1764688250693,0.2219879,90095.0,90091.0,0.00023926]
[1764688250860,0.06155,90092.0,90091.0,0.00023926]
[1764688251388,0.15629,90092.0,90091.0,0.00023926]
[1764688251588,0.0184,90092.0,90091.0,0.00023926]
[1764688251993,0.002,90095.0,90094.0,0.22199036]
[1764688252194,0.001,90107.0,90106.0,0.5449608]
[1764688252394,0.001,90107.0,90098.0,0.2330779]
[1764688252395,0.0131474,90118.0,90098.0,0.01109902]
[1764688252396,0.01109828,90104.0,90098.0,0.01109902]
[1764688252660,0.01109939,90095.0,90089.0,0.01110013]
[1764688252836,0.22198871,90095.0,90091.0,0.22223639]
[1764688253037,0.0110989,90099.0,90094.0,0.01109951]
[1764688253241,0.0184,90107.0,90098.0,0.01109902]
[1764688253441,0.0110984,90103.0,90098.0,0.01109902]
[1764688253643,0.01109853,90102.0,90099.0,0.0110989]
[1764688253849,0.23306189,90105.0,90102.0,0.01109853]
[1764688254049,0.01109828,90104.0,90100.0,0.01109877]
[1764688254253,0.01109877,90100.0,90094.0,0.01109951]
[1764688254412,0.01109914,90097.0,90091.0,0.23333544]
[1764688254616,0.23308987,90094.0,90091.0,0.00023926]
[1764688254826,0.01109951,90094.0,90091.0,0.00023926]
[1764688255028,0.23309069,90094.0,90091.0,0.00023926]
[1764688255233,0.01109939,90095.0,90092.0,0.22199401]
[1764688255457,0.23308227,90097.0,90093.0,0.23309219]
[1764688255677,0.22199314,90093.0,90091.0,0.00023926]
[1764688255933,0.22199449,90093.0,90091.0,0.00023926]
[1764688256126,0.22199463,90093.0,90091.0,0.00023926]
[1764688256363,0.004,90094.0,90091.0,0.23333686]
[1764688256530,0.22199325,90093.0,90091.0,0.00023926]
[1764688256783,0.01409951,90094.0,90091.0,0.00023926]
[1764688256955,0.01409951,90094.0,90092.0,0.22199529]
[1764688256956,0.003,90094.0,90092.0,0.22199529]
[1764688257161,0.003,90094.0,90091.0,0.23333404]
[1764688257162,0.22199354,90093.0,90091.0,0.00023926]
[1764688257372,0.001,90093.0,90091.0,0.00023926]
[1764688257577,0.09474,90092.0,90091.0,0.00023926]
[1764688257784,0.15629,90092.0,90091.0,0.00023926]
[1764688257982,0.06155,90092.0,90091.0,0.00023926]
[1764688258484,0.15629,90092.0,90091.0,0.00023926]
[1764688258817,0.15929,90092.0,90091.0,0.00023926]
[1764688259400,0.16029,90092.0,90091.0,0.00023926]
[1764688259705,0.38228529,90092.0,90091.0,0.00023926]
[1764688259918,0.38128529,90092.0,90091.0,0.00023926]
[1764688260143,0.15929,90092.0,90091.0,0.00023926]
[1764688260344,0.17669,90092.0,90091.0,0.00023926]
[1764688260569,0.28641581,90092.0,90091.0,0.00023926]
[1764688260773,0.28641581,90092.0,90055.0,0.00277736]
[1764688260774,0.22204705,90071.0,90055.0,0.00277736]
[1764688260978,0.2220717,90061.0,90055.0,0.00277736]
[1764688261183,0.2220717,90061.0,90024.0,0.01110814]
[1764688261184,0.22209636,90051.0,90024.0,0.01110814]
[1764688261381,0.22209636,90051.0,90030.0,0.0111074]
[1764688261382,0.39678636,90051.0,90030.0,0.0111074]
[1764688261582,0.39678636,90051.0,90029.0,0.01110753]
[1764688261788,0.15629,90051.0,90035.0,0.01110679]
[1764688261995,0.0184,90051.0,90050.0,0.00078029]
[1764688262195,0.17469,90051.0,90050.0,0.00078029]
[1764688263042,0.39678636,90051.0,90050.0,0.00078029]
[1764688263418,0.39678636,90051.0,90050.0,1e-08]
[1764688263419,0.45930935,90051.0,90050.0,1e-08]
[1764688263763,0.45930935,90051.0,90001.0,0.01111098]
[1764688263765,0.01111012,90008.0,90001.0,0.01111098]
[1764688263964,0.01111,90009.0,90001.0,0.01149547]
[1764688264132,0.04837,90010.0,90006.0,0.01111037]
[1764688264360,0.0184,90009.0,90006.0,0.01111037]
[1764688264543,0.01111061,90004.0,90001.0,0.00038449]
[1764688264720,0.0184,90009.0,90006.0,0.22220488]
[1764688264920,0.04837,90010.0,90006.0,0.01111037]
[1764688265119,0.0184,90009.0,90007.0,0.22220269]
[1764688265582,0.09474,90017.0,90001.0,0.00038449]
[1764688265583,0.04837,90019.0,90015.0,0.01110925]
[1764688265724,0.0184,90020.0,90019.0,0.01110876]
[1764688265923,0.01110876,90019.0,90013.0,0.22218945]
[1764688266135,0.01110888,90018.0,90009.0,0.01111]
[1764688266335,0.02950901,90017.0,90009.0,0.01111]
[1764688266519,0.0111079,90026.0,90014.0,0.01110938]
[1764688266719,0.0111079,90026.0,90011.0,0.01110975]
[1764688266720,0.22218025,90017.0,90016.0,0.00224512]
[1764688266970,0.01110814,90024.0,90016.0,0.00224512]
[1764688266971,0.02950814,90024.0,90016.0,0.00224512]
[1764688267144,0.01110864,90020.0,90016.0,0.23329072]
[1764688267346,0.05879777,90027.0,90023.0,0.00203542]
[1764688267547,0.0184,90026.0,90024.0,0.22216186]
[1764688267860,0.0184,90026.0,90017.0,0.01110901]
[1764688267861,0.1478,90048.0,90045.0,0.01110555]
[1764688268066,0.0184,90047.0,90043.0,0.0111058]
[1764688268270,0.23321602,90046.0,90042.0,0.23322314]
[1764688268485,0.01110592,90042.0,90029.0,0.01110753]
[1764688268691,0.0184,90047.0,90014.0,0.09826]
[1764688268692,0.22214783,90031.0,90027.0,0.22215512]
[1764688268895,0.01110679,90035.0,90026.0,0.23326498]
[1764688268896,0.01110703,90033.0,90026.0,0.23326498]
[1764688269100,0.09943,90042.0,89977.0,0.148]
[1764688269101,0.0111079,90026.0,90020.0,0.323]
[1764688269309,0.01110716,90032.0,90022.0,0.01110839]
[1764688269522,0.09943,90042.0,90036.0,0.01110666]
[1764688269729,0.002,90047.0,90036.0,0.01110666]
[1764688269730,0.0184,90040.0,90036.0,0.01110666]
[1764688269934,0.0184,90040.0,90037.0,0.23323653]
[1764688270138,0.01110642,90038.0,90031.0,0.01110728]
[1764688270343,0.22212782,90039.0,90034.0,0.01110691]
[1764688270554,0.04837,90048.0,90045.0,0.01110555]
[1764688270555,0.05037,90048.0,90045.0,0.01110555]
[1764688270760,0.05037,90048.0,90038.0,0.01110642]
[1764688270761,0.22211432,90044.0,90040.0,0.01110617]
[1764688270977,0.01110309,90065.0,90058.0,0.01110395]
[1764688271186,0.01110284,90067.0,90060.0,0.0111037]
[1764688271401,0.65218283,90080.0,90069.0,0.01110259]
[1764688271402,0.09943,90080.0,90069.0,0.01110259]
[1764688271582,0.09943,90080.0,90064.0,0.01110321]
[1764688271583,0.01110259,90069.0,90064.0,0.01110321]
[1764688271833,0.04769,90071.0,90048.0,0.03199]
[1764688271834,0.01110333,90063.0,90057.0,0.01110407]
[1764688272036,0.01110346,90062.0,90057.0,0.01110407]
[1764688272217,0.01289766,90063.0,90058.0,0.23318121]
[1764688272421,0.22207665,90060.0,90057.0,0.00038449]
[1764688272628,0.0131474,90059.0,90057.0,0.00038449]
[1764688272846,0.01110333,90063.0,90057.0,0.00038449]
[1764688272847,0.01110062,90085.0,90068.0,0.01110272]
[1764688273099,0.05946988,90091.0,90078.0,0.23312995]
[1764688273100,0.01110099,90082.0,90078.0,0.23312995]
[1764688273303,0.01110124,90080.0,90075.0,0.23313668]
[1764688273534,0.0184,90084.0,90075.0,0.23313668]
[1764688273535,0.0184,90084.0,90082.0,0.22201881]
[1764688273735,0.0184,90084.0,90081.0,0.01110112]
[1764688273989,0.0184,90084.0,90082.0,0.22201869]
[1764688274193,0.09943,90093.0,90082.0,0.22201869]
[1764688274194,0.01109779,90108.0,90100.0,0.01109877]
[1764688274402,0.0184,90111.0,90070.0,0.0184]
[1764688274403,0.0184,90111.0,90103.0,0.0110984]
[1764688274613,0.0184,90111.0,90105.0,0.01109816]
[1764688274839,0.01109767,90109.0,90104.0,0.01109828]
[1764688275049,0.01109779,90108.0,90101.0,0.01109865]
[1764688275286,0.01109828,90104.0,90083.0,0.36464]
[1764688275498,0.23307242,90101.0,90093.0,0.23309025]
[1764688275737,0.23307242,90101.0,90083.0,0.36469051]
[1764688275738,0.01109754,90110.0,90103.0,0.0110984]
[1764688275952,0.01109754,90110.0,90106.0,0.01109804]
[1764688276192,0.01109804,90106.0,90097.0,0.01109914]
[1764688276399,0.01109804,90106.0,90037.0,2.77661229]
[1764688276400,0.22197225,90102.0,90100.0,0.01]
[1764688276614,0.01110038,90087.0,90083.0,5.051e-05]
[1764688276823,0.0131474,90086.0,90085.0,0.01110062]
[1764688277048,0.01836,90091.0,90089.0,0.22200268]
[1764688277259,0.01209828,90104.0,90098.0,0.01109902]
[1764688277260,0.01836,90100.0,90098.0,0.01109902]
[1764688277466,0.01836,90100.0,90097.0,0.33409914]
[1764688277673,0.01109779,90108.0,90103.0,0.0110984]
[1764688277932,0.001,90106.0,90102.0,0.23306917]
[1764688278141,0.001,90106.0,90099.0,0.0110989]
[1764688278142,0.01209804,90106.0,90099.0,0.0110989]
[1764688278352,0.01209804,90106.0,90072.0,0.44408772]
[1764688278353,0.04769,90097.0,90096.0,0.33409927]
[1764688278558,0.04769,90097.0,90095.0,0.01109939]
[1764688278792,0.04769,90097.0,90090.0,0.01110001]
[1764688279038,0.0131474,90096.0,90091.0,0.01109988]
[1764688279245,0.0131474,90096.0,90091.0,0.33409988]
[1764688279447,0.22199529,90092.0,90091.0,0.323]
[1764688279666,0.01110001,90090.0,90086.0,0.0111005]
[1764688279869,0.22200268,90089.0,90085.0,0.01110062]
[1764688280079,0.0111005,90086.0,90083.0,0.00028981]
[1764688280291,0.25352162,90085.0,90083.0,0.00028981]
[1764688280500,0.09943,90084.0,90083.0,0.00028981]
[1764688280708,0.1125774,90084.0,90083.0,0.00028981]
[1764688281369,0.2535224,90084.0,90083.0,0.00028981]
[1764688281822,0.01310001,90090.0,90083.0,0.00028981]
[1764688281823,0.002,90090.0,90089.0,0.54500268]
[1764688282046,0.002,90090.0,90089.0,0.64326268]
[1764688282508,0.0110968,90116.0,90111.0,0.2330459]
[1764688282736,0.01109668,90117.0,90112.0,0.0110973]
[1764688283194,0.0110968,90116.0,90112.0,0.0110973]
[1764688283403,0.23303512,90116.0,90112.0,0.0110973]
[1764688283630,0.01836,90119.0,90112.0,0.0110973]
[1764688283843,0.01836,90119.0,90115.0,0.01109693]
[1764688284066,0.003,90117.0,90114.0,0.323]
[1764688284272,0.01836,90119.0,90114.0,0.323]
[1764688284480,0.01836,90119.0,90118.0,0.22193124]
[1764688284688,0.04769,90125.0,90124.0,0.22191647]
[1764688284903,0.01109496,90131.0,90125.0,0.0110957]
[1764688285114,0.00511402,90130.0,90128.0,0.22190478]
[1764688285324,0.00511402,90130.0,90129.0,0.323]
[1764688286186,0.00511402,90130.0,90129.0,0.42126]
[1764688286607,0.00511402,90130.0,90129.0,0.323]
[1764688286822,0.00511402,90130.0,90129.0,0.42126]
[1764688287033,0.00711402,90130.0,90129.0,0.42126]
[1764688287452,0.00711402,90130.0,90129.0,0.323]
[1764688287667,0.00811402,90130.0,90129.0,0.323]
[1764688288113,0.00711402,90130.0,90129.0,0.323]
[1764688288314,0.00711402,90130.0,90127.0,0.01109545]
[1764688288445,0.00611402,90130.0,90129.0,0.323]
[1764688288648,0.00611402,90130.0,90128.0,0.2219066]
[1764688289054,0.00511402,90130.0,90128.0,0.2219066]
[1764688289260,0.00611402,90130.0,90128.0,0.2219066]
[1764688289462,0.00711402,90130.0,90129.0,0.42126]
[1764688289724,0.00611402,90130.0,90129.0,0.42126]
[1764688290066,0.00711402,90130.0,90129.0,0.42126]
[1764688290302,0.00511402,90130.0,90129.0,0.323]
[1764688290696,0.00611402,90130.0,90129.0,0.42126]
[1764688290861,0.00611402,90130.0,90129.0,0.323]
[1764688291061,0.00511402,90130.0,90129.0,0.323]
[1764688291467,0.0110061,90158.0,90157.0,0.22183524]
[1764688291674,0.0110061,90158.0,90152.0,0.01109237]
[1764688291675,0.01108905,90179.0,90172.0,0.01108991]
[1764688291896,0.00038022,90179.0,90178.0,0.22178222]
[1764688292095,0.00038022,90179.0,90155.0,0.09826]
[1764688292096,0.01108917,90178.0,90175.0,0.01108954]
[1764688292298,0.01108917,90178.0,90172.0,0.01108991]
[1764688292299,0.00038022,90179.0,90176.0,0.01108942]
[1764688292516,0.00038022,90179.0,90176.0,0.23287647]
[1764688292726,0.00038022,90179.0,90177.0,0.22178467]
[1764688293123,0.003,90178.0,90177.0,0.22178467]
[1764688293538,0.00038022,90179.0,90177.0,0.22178467]
[1764688294115,0.01108954,90175.0,90172.0,0.33408991]
[1764688294316,0.22180326,90170.0,90169.0,0.04164]
[1764688294636,0.01109053,90167.0,90162.0,0.23291259]
[1764688294816,0.01109053,90167.0,90162.0,0.55591227]
[1764688295018,0.01108991,90172.0,90162.0,0.55591227]
[1764688295019,0.0151474,90178.0,90175.0,0.01108954]
[1764688295202,0.0151474,90178.0,90177.0,0.323]
[1764688295203,0.002,90178.0,90177.0,0.323]
[1764688295408,0.002,90178.0,90169.0,0.232895]
[1764688295409,0.01146927,90179.0,90166.0,0.01109065]
[1764688295609,0.01146927,90179.0,90175.0,0.01108954]
[1764688295610,0.0131474,90178.0,90175.0,0.01108954]
[1764688296028,0.01108942,90176.0,90166.0,0.23290342]
[1764688296223,0.01108942,90176.0,90136.0,0.44377292]
[1764688296224,0.0110904,90168.0,90164.0,0.323]
[1764688296424,0.001,90170.0,90167.0,0.01109053]
[1764688296625,0.001,90170.0,90168.0,0.2218075]
[1764688297272,0.01108917,90178.0,90167.0,0.2328987]
[1764688297273,0.01346927,90179.0,90175.0,0.01108954]
[1764688297474,0.01346927,90179.0,90174.0,0.01108967]
[1764688297649,0.001,90176.0,90173.0,0.01108979]
[1764688297854,0.01108991,90172.0,90163.0,0.323]
[1764688298082,0.003,90176.0,90163.0,0.323]
[1764688298083,0.002,90176.0,90163.0,0.33409102]
[1764688298283,0.00038022,90179.0,90162.0,0.01109114]
[1764688298284,0.22180818,90168.0,90162.0,0.01109114]
[1764688298481,0.01109028,90169.0,90160.0,0.05273139]
[1764688298482,0.01109077,90165.0,90160.0,0.05273139]
[1764688298708,0.01109102,90163.0,90160.0,0.27455701]
[1764688298920,0.01109102,90163.0,90160.0,0.04164]
[1764688298921,0.23291241,90163.0,90160.0,0.04164]
[1764688299067,0.2218251,90162.0,90160.0,0.04164]
[1764688299274,0.001,90176.0,90162.0,0.06111]
[1764688299657,0.003,90176.0,90166.0,0.33409065]
[1764688299783,0.01108979,90173.0,90168.0,0.323]
[1764688299991,0.22179942,90172.0,90168.0,0.55589714]
[1764688300190,0.22180116,90171.0,90168.0,0.323]
[1764688300414,0.02940979,90173.0,90150.0,0.01109262]
[1764688300415,0.01109028,90169.0,90150.0,0.01109262]
[1764688300674,0.0110909,90164.0,90154.0,0.01109213]
[1764688300810,0.01109127,90161.0,90154.0,0.23293275]
[1764688300995,0.001,90163.0,90161.0,0.22182488]
[1764688301199,0.001,90163.0,90160.0,0.01109139]
[1764688301200,0.01109102,90163.0,90160.0,0.01109139]
[1764688301440,0.01109077,90165.0,90161.0,0.01109127]
[1764688301638,0.22182072,90163.0,90160.0,0.23291798]
[1764688301838,0.23291174,90163.0,90160.0,0.01109139]
[1764688302167,0.23291174,90163.0,90158.0,0.01109163]
[1764688302168,0.22182635,90161.0,90158.0,0.01109163]
[1764688302370,0.22182635,90161.0,90153.0,0.04164]
[1764688302371,0.01109163,90158.0,90155.0,0.323]
[1764688302570,0.23293042,90156.0,90150.0,0.01109262]
[1764688302787,0.011092,90155.0,90152.0,0.22184551]
[1764688302985,0.01109065,90166.0,90156.0,0.01109188]
[1764688303211,0.44350559,90192.0,90155.0,0.22183968]
[1764688303212,0.22183083,90159.0,90155.0,0.22183968]
[1764688303338,0.01138702,90163.0,90156.0,0.01109188]
[1764688303539,0.01138702,90163.0,90159.0,0.23292072]
[1764688303540,0.0131474,90162.0,90159.0,0.23292072]
[1764688303740,0.02423854,90162.0,90158.0,0.01109163]
[1764688303983,0.0131474,90162.0,90158.0,0.01109163]
[1764688304131,0.0134434,90163.0,90161.0,0.22182457]
[1764688304547,0.01109127,90161.0,90152.0,0.01109237]
[1764688304752,0.01338702,90163.0,90159.0,0.23292118]
[1764688304961,0.001,90162.0,90159.0,0.23292118]
[1764688305167,0.01109373,90141.0,90135.0,0.04164]
[1764688305376,0.22186231,90146.0,90142.0,0.0110936]
[1764688305600,0.22186231,90146.0,90137.0,0.323]
[1764688305601,0.01109323,90145.0,90137.0,0.323]
[1764688305989,0.01109323,90145.0,90136.0,0.01109434]
[1764688305990,0.01109323,90145.0,90140.0,0.54487541]
[1764688306119,0.2712276,90148.0,90143.0,0.01109348]
[1764688306325,0.2712276,90148.0,90142.0,0.0110936]
[1764688306326,0.04937,90148.0,90147.0,0.22185985]
[1764688306524,0.06046286,90148.0,90145.0,0.22186429]
[1764688306730,0.01109323,90145.0,90142.0,0.23296331]
[1764688306927,0.2329533,90147.0,90142.0,0.23296331]
[1764688307131,0.22186273,90146.0,90143.0,0.22186969]
[1764688307331,0.22186259,90146.0,90144.0,0.22186715]
[1764688307735,0.01109323,90145.0,90137.0,0.323]
[1764688307943,0.01109385,90140.0,90137.0,0.323]
[1764688308387,0.01109336,90144.0,90141.0,0.01109373]
[1764688308564,0.22286292,90146.0,90142.0,0.0110936]
[1764688308739,0.22186523,90145.0,90142.0,0.2218701]
[1764688308950,0.001,90146.0,90145.0,0.22186477]
[1764688309348,0.001,90146.0,90145.0,0.24405124]
[1764688309657,0.01109139,90160.0,90145.0,0.24405124]
[1764688309658,0.01832,90155.0,90154.0,0.22184262]
[1764688309882,0.01109286,90148.0,90145.0,0.06111]
[1764688310087,0.01109286,90148.0,90143.0,0.22186926]
[1764688310088,0.01869999,90155.0,90143.0,0.23296071]
[1764688310294,0.01109225,90153.0,90147.0,0.01109299]
[1764688310466,0.01869999,90155.0,90147.0,0.01109299]
[1764688310467,0.01869999,90155.0,90148.0,0.01109286]
[1764688310827,0.02069999,90155.0,90152.0,0.22184701]
[1764688311030,0.03179199,90155.0,90151.0,0.0110925]
[1764688311320,0.03184739,90155.0,90154.0,0.22184262]
[1764688311518,0.00037999,90155.0,90154.0,0.22184262]
[1764688311693,0.00037999,90155.0,90154.0,0.37486262]
[1764688312016,0.00037999,90155.0,90149.0,0.01109274]
[1764688312017,0.00137999,90155.0,90146.0,0.01109311]
[1764688312172,0.00137999,90155.0,90154.0,0.22184262]
[1764688312517,0.00137999,90155.0,90152.0,0.01109237]
[1764688312718,0.00137999,90155.0,90154.0,0.22184262]
[1764688312895,1.75137999,90155.0,90154.0,0.28295262]
[1764688313329,1.75037999,90155.0,90154.0,0.37486262]
[1764688313527,1.75037999,90155.0,90154.0,0.69786262]
[1764688313725,1.75137999,90155.0,90154.0,0.69786262]
[1764688314316,1.75037999,90155.0,90154.0,0.69886262]
[1764688314491,1.75137999,90155.0,90154.0,0.69886262]
[1764688314723,1.75137999,90155.0,90154.0,0.60595262]
[1764688314925,1.75137999,90155.0,90154.0,0.60695262]
[1764688315128,1.75137999,90155.0,90154.0,0.69886262]
[1764688318973,1.75137999,90155.0,90154.0,0.37586262]
[1764688319374,1.75137999,90155.0,90154.0,0.69886262]
[1764688320775,1.10881999,90155.0,90154.0,1.09488862]
[1764688321203,0.57542054,90155.0,90154.0,1.09488862]
[1764688321406,0.17355908,90155.0,90154.0,1.15741161]